bitfinex/quotes_SOLUSD_20241209
["timestamp","ask_amount","ask_price","bid_price","bid_amount"]
[1733787788684,0.5662438,218.83,218.82,0.25098]
[1733787789779,0.5662438,218.83,218.82,10.25098]
[1733787789965,0.5662438,218.83,218.82,11.84918]
[1733787790480,10.0,219.07,218.82,11.84918]
[1733787790481,10.0,219.07,218.98,3.3278]
[1733787790780,7.9844,219.08,219.0,3.3278]
[1733787791189,10.0,219.06,219.0,3.3278]
[1733787791478,7.9844,219.08,219.0,3.3278]
[1733787791675,2.50871492,219.04,219.0,3.3278]
[1733787791894,0.5662438,219.04,219.02,3.3278]
[1733787794071,0.5662438,219.04,218.89,6.3853]
[1733787794493,0.5662438,219.04,218.9,0.12549]
[1733787794896,0.5662438,219.04,218.83,7.0587]
[1733787794897,8.0273,218.99,218.83,7.0587]
[1733787795076,20.0,218.96,218.83,7.0587]
[1733787795483,20.0,218.96,218.84,0.12549]
[1733787795881,20.0,218.96,218.83,7.0587]
[1733787796373,20.0,218.96,218.84,0.12549]
[1733787796575,20.0,218.96,218.79,20.0]
[1733787796978,21.93456004,218.96,218.79,20.0]
[1733787797189,21.93456004,218.96,218.81,10.0]
[1733787797387,21.93456004,218.96,218.82,0.12549]
[1733787797794,21.93456004,218.96,218.82,0.25098]
[1733787798317,21.93456004,218.96,218.82,0.12549]
[1733787798476,20.0,218.93,218.73,11.5757]
[1733787798674,1.5836,218.88,218.73,1.5757]
[1733787798890,21.5836,218.88,218.71,10.0]
[1733787799610,20.0,218.86,218.68,11.5757]
[1733787799804,20.0,218.86,218.73,10.0]
[1733787800096,20.0,218.86,218.68,23.9757]
[1733787800097,20.0,218.86,218.76,0.12549]
[1733787800400,1.5836,218.88,218.76,0.12549]
[1733787800605,1.5836,218.88,218.78,0.12549]
[1733787801099,1.5836,218.88,218.77,10.12549]
[1733787801394,1.5836,218.88,218.78,0.12549]
[1733787801992,6.4437,218.92,218.8,0.25098]
[1733787802189,6.4437,218.92,218.8,0.81077323]
[1733787802515,6.4437,218.92,218.8,0.12549]
[1733787803111,6.4437,218.92,218.8,0.25098]
[1733787803397,6.4437,218.92,218.82,0.25098]
[1733787803981,6.31093874,218.92,218.82,0.25098]
[1733787804874,20.0,218.89,218.82,0.12549]
[1733787805175,20.0,218.89,218.76,22.4]
[1733787805378,20.0,218.89,218.77,0.12549]
[1733787806300,20.0,218.89,218.75,0.25098]
[1733787806795,20.0,218.89,218.75,0.12549]
[1733787806972,20.0,218.87,218.69,10.0]
[1733787807172,20.0,218.87,218.68,11.5757]
[1733787807583,20.0,218.89,218.68,1.5757]
[1733787807901,1.6491,218.86,218.69,0.6856178]
[1733787808080,1.6491,218.86,218.64,10.0]
[1733787808081,20.0,218.82,218.64,0.6856178]
[1733787808284,20.0,218.81,218.64,0.6856178]
[1733787808687,20.0,218.81,218.64,10.6856178]
[1733787808899,20.0,218.82,218.64,10.6856178]
[1733787809089,20.0,218.82,218.65,0.12549]
[1733787809275,20.0,218.81,218.65,0.12549]
[1733787809475,20.0,218.81,218.64,0.6856178]
[1733787809695,20.0,218.81,218.63,1.5231]
[1733787809900,20.0,218.81,218.64,0.12549]
[1733787810083,20.0,218.81,218.64,10.12549]
[1733787810283,20.0,218.82,218.68,0.12549]
[1733787810484,20.0,218.82,218.68,0.81109495]
[1733787810694,20.0,218.82,218.68,10.81109495]
[1733787810998,20.0,218.82,218.68,0.81109495]
[1733787811201,20.0,218.82,218.69,0.12549]
[1733787811575,20.0,218.82,218.71,0.12549]
[1733787811790,6.6325,218.85,218.73,0.25098]
[1733787812007,1.6491,218.86,218.75,0.25098]
[1733787812202,1.6491,218.86,218.74,20.68544312]
[1733787812203,6.6325,218.9,218.79,0.25098]
[1733787812390,10.5662438,219.04,218.84,0.25098]
[1733787812391,8.2816,218.99,218.84,0.25098]
[1733787812594,8.2816,218.99,218.86,0.25098]
[1733787813301,8.2816,218.99,218.86,0.12549]
[1733787813680,8.2816,218.99,218.88,0.25098]
[1733787814286,8.2816,218.99,218.88,10.25098]
[1733787814498,0.5662438,219.04,218.91,10.0]
[1733787814499,8.8478438,219.04,218.91,10.0]
[1733787814712,8.8478438,219.04,218.92,0.25098]
[1733787815791,8.8478438,219.04,218.9,0.12549]
[1733787815792,20.0,219.01,218.9,0.12549]
[1733787816390,20.0,219.01,218.87,0.81058541]
[1733787816993,20.0,219.01,218.85,1.5231]
[1733787817194,20.0,219.0,218.83,0.68513534]
[1733787817402,20.0,219.0,218.81,6.5312]
[1733787817595,20.0,218.98,218.81,6.5312]
[1733787817914,20.0,218.98,218.82,0.12549]
[1733787818119,10.0,219.03,218.82,0.12549]
[1733787818120,20.0,219.0,218.84,0.12549]
[1733787818609,20.0,219.0,218.81,6.5312]
[1733787818610,22.00418679,219.01,218.81,17.21635422]
[1733787818796,22.00418679,219.01,218.64,70.0]
[1733787818797,1.6491,218.94,218.76,6.5312]
[1733787819130,1.6491,218.94,218.7,8.0543]
[1733787819131,20.0,218.9,218.7,8.0543]
[1733787819492,20.0,218.89,218.7,8.0543]
[1733787819692,20.0,218.89,218.71,0.12549]
[1733787819893,20.0,218.89,218.71,10.81106568]
[1733787820212,20.0,218.9,218.71,0.68557568]
[1733787820416,20.0,218.88,218.7,8.0543]
[1733787820728,21.5617,218.85,218.65,7.8879]
[1733787821090,20.0,218.83,218.66,0.12549]
[1733787821293,20.0,218.83,218.67,10.0]
[1733787821521,20.0,218.83,218.65,7.8879]
[1733787821522,20.0,218.83,218.69,10.0]
[1733787821699,1.5617,218.85,218.7,0.68552466]
[1733787821910,1.5617,218.85,218.67,10.0]
[1733787822209,3.52182953,218.85,218.69,0.12549]
[1733787822518,20.0,218.84,218.65,18.57349596]
[1733787822721,20.0,218.84,218.66,0.12549]
[1733787822918,20.0,218.84,218.68,0.12549]
[1733787823100,1.5617,218.85,218.68,0.12549]
[1733787823304,21.5617,218.85,218.68,0.12549]
[1733787823623,2.00300183,218.89,218.72,0.25098]
[1733787823803,1.5617,218.91,218.74,0.25098]
[1733787824116,1.5617,218.91,218.76,0.25098]
[1733787824423,3.52258123,218.91,218.76,0.25098]
[1733787824625,1.5617,218.91,218.76,0.25098]
[1733787824919,1.5617,218.91,218.78,0.12549]
[1733787825125,13.38251303,219.14,218.88,10.0]
[1733787825329,13.38251303,219.14,218.87,10.0]
[1733787825330,154.02766848,219.18,218.9,10.0]
[1733787825624,0.12549,219.11,218.92,10.0]
[1733787825821,0.12549,219.11,218.9,10.0]
[1733787826019,13.76,219.12,218.9,10.0]
[1733787826214,13.76,219.08,218.9,10.0]
[1733787826525,0.12549,219.01,218.88,20.0]
[1733787826944,0.12549,219.01,218.9,10.0]
[1733787827131,70.0,219.2,218.92,10.0]
[1733787827500,70.0,219.2,218.94,10.0]
[1733787827708,70.0,219.23,218.94,10.0]
[1733787827918,70.0,219.23,218.93,10.0]
[1733787827919,27.52,219.25,218.96,10.0]
[1733787828129,13.76,219.22,218.96,10.0]
[1733787828333,13.76,219.2,218.98,10.0]
[1733787828535,13.76,219.2,219.0,10.0]
[1733787829197,13.76,219.2,219.04,10.0]
[1733787829505,13.76,219.2,218.91,17.8879]
[1733787829506,13.76,219.2,219.06,10.0]
[1733787829709,0.12549,219.19,219.06,10.0]
[1733787830912,0.25098,219.19,219.06,10.0]
[1733787831532,7.7457,219.21,219.08,10.0]
[1733787832030,21.5057,219.21,219.06,10.0]
[1733787832409,0.12549,219.2,219.06,10.0]
[1733787832604,13.88549,219.2,219.06,10.0]
[1733787832828,0.12549,219.16,219.06,10.0]
[1733787833126,0.25098,219.16,219.01,20.0]
[1733787833626,0.12549,219.16,219.05,10.0]
[1733787833838,20.0,219.16,219.05,10.0]
[1733787834125,20.0,219.16,219.08,10.0]
[1733787834483,9.73095538,219.21,219.1,10.0]
[1733787835424,0.12549,219.2,219.08,10.0]
[1733787836029,0.12549,219.2,219.1,10.0]
[1733787836207,0.12549,219.2,219.08,10.0]
[1733787836733,0.25098,219.2,219.08,10.0]
[1733787836942,0.25098,219.2,219.07,10.0]
[1733787836943,21.98525538,219.21,219.1,10.0]
[1733787837649,1.98525538,219.21,219.13,10.0]
[1733787837815,20.0,219.24,219.13,10.0]
[1733787838016,1.95279929,219.24,219.17,10.0]
[1733787838215,0.5662438,219.26,219.17,10.0]
[1733787838629,0.5662438,219.26,219.15,20.0]
[1733787839527,20.5662438,219.26,219.15,20.0]
[1733787839735,20.5662438,219.26,219.13,10.0]
[1733787839736,0.25098,219.25,219.13,10.0]
[1733787840328,0.25098,219.23,219.1,8.8576]
[1733787840844,0.25098,219.23,219.09,15.9447]
[1733787841149,0.25098,219.23,219.11,8.6291]
[1733787841538,0.25098,219.23,219.09,7.3156]
[1733787841539,0.25098,219.23,219.09,8.6291]
[1733787841720,0.25098,219.23,219.07,7.3156]
[1733787841721,0.12549,219.18,219.07,8.5834]
[1733787842117,20.0,219.15,219.07,8.5834]
[1733787842339,20.0,219.15,219.05,15.899]
[1733787842643,0.12549,219.14,219.03,8.5834]
[1733787843237,20.12549,219.14,219.03,8.5834]
[1733787843430,20.0,219.12,219.03,8.5834]
[1733787843940,13.76,219.17,219.01,7.3156]
[1733787843941,0.12549,219.21,219.07,15.899]
[1733787844134,0.25098,219.19,219.07,8.5834]
[1733787845042,2.6844,219.2,219.09,8.5834]
[1733787845264,22.6844,219.2,219.09,8.5834]
[1733787845539,6.3589,219.23,219.13,8.5834]
[1733787845754,2.6844,219.21,219.08,8.5834]
[1733787845917,0.12549,219.2,219.08,8.5834]
[1733787846640,0.12549,219.2,219.0,6.0032]
[1733787846641,0.12549,219.16,219.0,6.0032]
[1733787846829,20.0,219.12,219.0,6.0032]
[1733787847246,21.5001,219.12,218.92,7.6674]
[1733787847840,21.5001,219.12,218.93,0.12549]
[1733787847841,1.5001,219.12,218.93,0.12549]
[1733787848014,20.0,219.16,218.95,0.12549]
[1733787848218,20.0,219.16,218.97,0.12549]
[1733787848631,20.0,219.16,218.97,0.25098]
[1733787849142,0.25098,219.15,218.97,0.12549]
[1733787849328,0.25098,219.15,218.94,0.12549]
[1733787849516,0.25098,219.15,218.92,7.6674]
[1733787849717,0.12549,219.12,218.92,7.6674]
[1733787850017,20.0,219.11,218.93,0.12549]
[1733787851822,20.0,219.11,218.93,0.25098]
[1733787853125,20.12549,219.1,218.93,0.25098]
[1733787853322,20.12549,219.1,218.92,7.6674]
[1733787853323,0.25098,219.07,218.92,1.6642]
[1733787853540,21.6103,219.08,218.88,0.68508664]
[1733787853728,0.12549,219.07,218.88,0.68508664]
[1733787854230,21.6103,219.08,218.89,0.12549]
[1733787854429,1.6103,219.13,218.9,0.68494729]
[1733787854939,1.6103,219.13,218.91,0.25098]
[1733787855534,0.12549,219.1,218.91,0.12549]
[1733787855736,0.12549,219.08,218.91,0.12549]
[1733787856032,0.12549,219.08,218.87,7.693]
[1733787856033,20.0,219.04,218.87,7.693]
[1733787856234,21.6103,219.02,218.82,0.68506578]
[1733787856543,20.0,219.0,218.81,7.693]
[1733787856965,20.0,219.0,218.82,0.68525794]
[1733787857447,6.1012,219.06,218.87,0.12549]
[1733787857648,6.1012,219.06,218.87,0.81038407]
[1733787857826,6.1012,219.06,218.89,0.12549]
[1733787858153,6.1012,219.06,218.89,0.81037745]
[1733787858334,6.1012,219.06,218.9,0.12549]
[1733787858525,8.58084337,219.06,218.91,0.68494645]
[1733787858736,20.0,219.03,218.92,0.25098]
[1733787859331,2.47964337,219.06,218.94,0.25098]
[1733787859530,1.6103,219.09,218.96,0.25098]
[1733787859947,1.6103,219.09,218.96,0.12549]
[1733787860140,4.07927475,219.09,218.92,7.693]
[1733787860532,20.0,219.08,218.92,7.693]
[1733787861351,20.0,219.08,218.93,0.81044583]
[1733787861531,6.1012,219.11,218.93,10.81044583]
[1733787861737,6.1012,219.11,218.94,0.12549]
[1733787861944,6.1012,219.11,218.96,0.25098]
[1733787862446,8.55054855,219.11,218.96,0.12549]
[1733787862651,8.55054855,219.11,218.92,7.693]
[1733787862851,20.0,219.08,218.92,7.693]
[1733787863733,20.0,219.08,218.93,0.12549]
[1733787863934,20.0,219.08,218.92,7.693]
[1733787864135,20.0,219.08,218.93,0.25098]
[1733787864857,20.0,219.08,218.93,0.93595787]
[1733787865646,8.55054855,219.11,218.93,0.93595787]
[1733787866048,2.44934855,219.11,218.93,10.93595787]
[1733787866238,1.6103,219.15,218.93,10.93595787]
[1733787867060,4.07706196,219.15,218.93,0.93595787]
[1733787867357,0.12549,219.14,218.93,0.81046787]
[1733787867563,20.0,219.13,218.93,0.81046787]
[1733787868560,20.0,219.12,218.94,0.12549]
[1733787869345,20.0,219.13,218.94,0.12549]
[1733787870163,20.0,219.13,218.95,0.68486286]
[1733787870348,20.0,219.13,218.92,7.693]
[1733787870746,0.12549,219.12,218.92,7.693]
[1733787871155,20.0,219.11,218.93,0.12549]
[1733787871347,20.0,219.11,218.93,0.25098]
[1733787871664,0.25098,219.1,218.92,7.693]
[1733787871867,14.07706196,219.15,218.92,7.693]
[1733787871868,20.0,219.09,218.92,7.693]
[1733787872162,20.0,219.09,218.94,0.12549]
[1733787872663,20.0,219.12,218.94,0.12549]
[1733787873449,20.0,219.12,218.94,0.25098]
[1733787873849,20.0,219.13,218.94,0.25098]
[1733787874547,20.0,219.12,218.94,0.25098]
[1733787875246,0.12549,219.14,218.94,0.25098]
[1733787875442,0.25098,219.14,218.94,0.25098]
[1733787876150,24.01097999,219.14,218.92,7.693]
[1733787876356,24.01097999,219.14,218.93,0.12549]
[1733787876770,0.25098,219.1,218.92,7.693]
[1733787877069,20.12549,219.08,218.92,7.693]
[1733787877273,20.12549,219.08,218.93,0.12549]
[1733787877773,20.12549,219.08,218.92,7.693]
[1733787877968,20.0,219.06,218.92,7.693]
[1733787878654,20.0,219.06,218.93,0.12549]
[1733787878857,20.0,219.08,218.93,0.12549]
[1733787879074,20.0,219.1,218.93,0.25098]
[1733787879655,1.6103,219.15,218.95,0.25098]
[1733787879876,0.12549,219.14,218.95,0.25098]
[1733787880373,23.88548999,219.14,218.93,0.12549]
[1733787881075,23.88548999,219.14,218.93,0.25098]
[1733787881076,0.12549,219.1,218.93,0.25098]
[1733787882577,0.12549,219.1,218.93,0.12549]
[1733787882578,0.12549,219.08,218.93,0.12549]
[1733787882777,20.0,219.09,218.93,0.12549]
[1733787883071,20.0,219.09,218.93,0.25098]
[1733787883677,20.0,219.07,218.92,7.693]
[1733787884683,20.0,219.07,218.93,0.12549]
[1733787884979,22.50889176,219.07,218.93,0.12549]
[1733787885457,0.12549,219.06,218.93,0.12549]
[1733787885657,20.0,219.05,218.93,0.12549]
[1733787886458,20.0,219.03,218.87,7.9804]
[1733787886679,20.0,219.02,218.87,7.9804]
[1733787886857,20.0,219.02,218.88,0.12549]
[1733787887058,0.25098,218.99,218.78,0.68522313]
[1733787887370,0.25098,218.99,218.7,17.13424419]
[1733787887371,0.12549,218.97,218.72,0.685354]
[1733787887557,20.0,218.98,218.72,0.685354]
[1733787887762,6.1028,219.05,218.76,0.12549]
[1733787887763,20.0,219.02,218.76,0.12549]
[1733787888076,0.12549,219.01,218.76,0.81069837]
[1733787888289,20.0,219.02,218.77,0.12549]
[1733787888492,6.1028,219.05,218.81,10.0]
[1733787888661,6.1028,219.05,218.82,0.81057097]
[1733787888858,6.1028,219.05,218.83,0.12549]
[1733787889162,6.1028,219.05,218.85,0.25098]
[1733787889365,0.12549,219.04,218.85,0.25098]
[1733787890074,20.0,219.02,218.87,0.25098]
[1733787890377,0.12549,219.01,218.86,7.9804]
[1733787891812,0.12549,219.01,218.87,0.12549]
[1733787892790,0.12549,219.01,218.86,7.9804]
[1733787892973,0.12549,218.99,218.86,7.9804]
[1733787893379,0.25098,218.99,218.86,1.5007]
[1733787893781,0.12549,218.97,218.86,1.5007]
[1733787894301,20.0,218.98,218.86,1.5007]
[1733787894599,20.0,219.0,218.86,1.5007]
[1733787894775,0.12549,218.99,218.86,1.5007]
[1733787895166,0.25098,218.99,218.86,1.5007]
[1733787895505,20.25098,218.99,218.82,0.12549]
[1733787896572,0.25098,218.96,218.81,7.85491001]
[1733787896882,0.25098,218.96,218.69,0.68549788]
[1733787896883,20.0,218.91,218.69,0.68549788]
[1733787897085,0.12549,218.9,218.69,0.68549788]
[1733787897572,20.0,218.91,218.65,10.0]
[1733787897768,20.0,218.91,218.67,10.0]
[1733787897996,20.0,218.91,218.68,0.81096023]
[1733787898288,22.42375989,218.91,218.68,0.81096023]
[1733787898703,22.42375989,218.91,218.69,0.12549]
[1733787898879,22.42375989,218.91,218.68,43.21096023]
[1733787898880,22.42375989,218.91,218.71,0.25098]
[1733787899192,22.42375989,218.91,218.71,0.12549]
[1733787899398,0.12549,218.9,218.71,0.12549]
[1733787899570,0.25098,218.9,218.68,22.4]
[1733787899770,0.12549,218.88,218.69,3.0695]
[1733787900193,1.6385,218.89,218.69,3.75519738]
[1733787900490,1.6385,218.89,218.7,0.12549]
[1733787901289,1.6385,218.89,218.7,0.25098]
[1733787902015,1.6385,218.89,218.7,0.12549]
[1733787902677,1.6385,218.89,218.71,0.68555582]
[1733787902877,1.6385,218.89,218.69,3.0695]
[1733787903089,0.12549,218.88,218.69,3.0695]
[1733787903685,20.12549,218.88,218.7,0.12549]
[1733787904087,1.6385,218.89,218.7,0.81119189]
[1733787904269,1.6385,218.89,218.71,0.12549]
[1733787904479,2.42375989,218.91,218.73,0.25098]
[1733787904686,1.6385,218.95,218.75,0.25098]
[1733787904885,1.6385,218.95,218.77,0.25098]
[1733787905083,1.6385,218.95,218.79,0.58528]
[1733787905471,1.6385,218.95,218.8,3.0695]
[1733787905783,1.6385,218.95,218.81,0.25098]
[1733787906894,20.0,218.91,218.81,0.25098]
[1733787908801,20.0,218.91,218.75,3.0695]
[1733787909581,20.0,218.91,218.76,0.12549]
[1733787909992,8.397154,218.94,218.76,0.93642722]
[1733787911398,20.0,218.91,218.76,0.93642722]
[1733787911899,2.294354,218.94,218.76,0.93642722]
[1733787912074,6.0929,218.99,218.78,0.25098]
[1733787912280,6.0929,218.99,218.8,0.25098]
[1733787912491,8.47802242,218.99,218.82,0.25098]
[1733787913600,8.47802242,218.99,218.82,0.12549]
[1733787913800,20.0,218.96,218.82,0.12549]
[1733787914220,8.47802242,218.99,218.82,0.12549]
[1733787914421,8.47802242,218.99,218.83,0.12549]
[1733787915085,8.47802242,218.99,218.82,0.12549]
[1733787915397,20.0,218.96,218.77,0.3343]
[1733787915779,20.0,218.96,218.77,1.01971929]
[1733787916504,20.0,218.96,218.78,0.12549]
[1733787916700,20.0,218.96,218.8,0.25098]
[1733787916897,20.0,218.96,218.82,0.25098]
[1733787917707,20.0,218.96,218.82,0.12549]
[1733787918801,20.0,218.96,218.8,0.25098]
[1733787919004,20.0,218.96,218.82,0.25098]
[1733787919485,20.0,218.96,218.82,0.12549]
[1733787920310,20.0,218.96,218.77,22.7343]
[1733787920483,20.0,218.96,218.77,0.3343]
[1733787921511,8.47802242,218.99,218.79,0.12549]
[1733787921688,8.47802242,218.99,218.79,0.25098]
[1733787923010,20.0,218.96,218.79,0.25098]
[1733787925595,20.0,218.96,218.81,0.25098]
[1733787926389,2.38512242,218.99,218.83,0.12549]
[1733787926616,21.6578,219.01,218.83,0.25098]
[1733787928521,6.013,219.04,218.85,0.12549]
[1733787928708,6.013,219.04,218.85,0.93606785]
[1733787929025,9.99999999,219.04,218.84,0.3343]
[1733787929208,9.99999999,218.99,218.77,0.3343]
[1733787929407,10.12548999,218.99,218.77,0.3343]
[1733787929715,13.88549,218.97,218.77,0.2343]
[1733787929907,20.12549,218.97,218.77,0.2343]
[1733787930418,0.12549,218.96,218.77,0.2343]
[1733787930614,20.12549,218.97,218.77,0.2343]
[1733787931416,20.12549,218.97,218.78,0.12549]
[1733787932807,20.12549,218.97,218.78,0.25098]
[1733787933227,0.12549,218.97,218.78,0.25098]
[1733787933415,2.42139136,218.97,218.78,0.93631485]
[1733787933622,1.5604,219.05,218.8,0.25098]
[1733787933837,1.5604,219.05,218.82,0.25098]
[1733787934157,0.12549,219.04,218.82,0.25098]
[1733787934810,3.84767103,219.05,218.82,0.25098]
[1733787935036,20.0,219.03,218.82,0.25098]
[1733787935330,0.12549,219.02,218.82,0.25098]
[1733787935735,0.12549,219.02,218.84,0.25098]
[1733787936051,0.25098,219.02,218.79,3.3038]
[1733787936350,20.25098,219.02,218.79,3.3038]
[1733787936513,0.25098,218.99,218.79,3.3038]
[1733787938449,0.25098,218.99,218.8,0.12549]
[1733787939244,0.25098,218.99,218.79,3.3038]
[1733787939601,1.68589,218.94,218.79,3.3038]
[1733787940723,0.12549,218.94,218.8,0.12549]
[1733787941330,4.0672153,218.99,218.8,0.12549]
[1733787941331,3.9417253,218.99,218.8,0.25098]
[1733787941527,0.12549,218.98,218.8,0.25098]
[1733787941957,2.2794253,218.99,218.8,0.25098]
[1733787942159,6.3676,219.03,218.8,0.25098]
[1733787942368,0.12549,219.02,218.8,0.25098]
[1733787942728,0.12549,218.99,218.8,0.25098]
[1733787948454,0.12549,218.99,218.82,0.25098]
[1733787949651,20.0,219.0,218.82,0.25098]
[1733787949652,20.0,219.0,218.84,0.25098]
[1733787950054,0.12549,218.99,218.84,0.25098]
[1733787952159,20.0,219.0,218.84,0.25098]
[1733787952850,0.12549,218.99,218.84,0.25098]
[1733787953059,0.12549,218.99,218.84,0.12549]
[1733787953840,0.12549,218.99,218.84,0.25098]
[1733787954785,2.36754299,219.03,218.86,0.25098]
[1733787954949,6.3676,219.08,218.89,0.2343]
[1733787955148,1.6623,219.1,218.91,3.0695]
[1733787955343,6.3676,219.13,218.92,0.25098]
[1733787956081,0.12549,219.12,218.92,0.25098]
[1733787956456,8.75340238,219.13,218.92,0.93585368]
[1733787956656,2.38580238,219.13,218.94,0.25098]
[1733787956947,1.6623,219.15,218.96,0.12549]
[1733787957349,0.12549,219.14,218.96,0.12549]
[1733787958387,0.25098,219.14,218.96,0.12549]
[1733787959861,20.25098,219.14,218.96,0.12549]
[1733787960986,34.01098,219.14,218.95,3.0695]
[1733787961149,0.25098,219.09,218.93,0.2343]
[1733787961348,20.25098,219.07,218.93,0.2343]
[1733787961655,0.12549,219.04,218.93,0.2343]
[1733787964657,20.0,219.05,218.94,0.12549]
[1733787964856,20.0,219.1,218.94,0.12549]
[1733787965058,0.12549,219.09,218.94,0.12549]
[1733787965884,6.3676,219.13,218.94,0.12549]
[1733787966180,0.12549,219.12,218.94,0.12549]
[1733787966554,6.3676,219.13,218.94,0.25098]
[1733787966771,4.03476849,219.15,218.94,0.25098]
[1733787967264,0.12549,219.14,218.94,0.25098]
[1733787967552,4.03476849,219.15,218.94,0.25098]
[1733787967858,0.12549,219.14,218.94,0.25098]
[1733787968576,0.12549,219.14,218.96,0.25098]
[1733787968992,0.12549,219.14,218.96,0.12549]
[1733787969190,0.25098,219.14,218.95,3.0695]
[1733787969875,0.12549,219.11,218.95,3.0695]
[1733787970054,20.25098,219.11,218.95,3.0695]
[1733787970469,20.25098,219.11,218.96,0.12549]
[1733787970664,0.12549,219.11,218.96,0.12549]
[1733787970975,0.12549,219.13,218.96,0.12549]
[1733787971660,0.12549,219.13,218.95,3.0695]
[1733787971856,0.25098,219.07,218.93,0.2343]
[1733787972170,0.12549,219.03,218.93,0.2343]
[1733787972761,20.0,219.04,218.93,0.2343]
[1733787973079,1.6623,219.15,218.94,0.12549]
[1733787973463,1.6623,219.15,218.94,0.25098]
[1733787973660,0.12549,219.14,218.94,0.25098]
[1733787973852,0.12549,219.14,218.94,0.12549]
[1733787974391,3.88444252,219.15,218.94,0.12549]
[1733787974557,0.12549,219.14,218.94,0.12549]
[1733787974760,0.25098,219.14,218.94,0.12549]
[1733787974960,0.12549,219.14,218.94,0.12549]
[1733787975163,0.25098,219.14,218.94,0.12549]
[1733787975791,0.12549,219.11,218.94,0.12549]
[1733787976658,0.25098,219.11,218.93,0.2343]
[1733787979079,3.88444252,219.15,218.94,0.12549]
[1733787979591,0.12549,219.14,218.94,0.12549]
[1733787979983,0.12549,219.1,218.94,0.12549]
[1733787980767,0.25098,219.06,218.93,0.2343]
[1733787981487,0.12549,219.06,218.93,0.2343]
[1733787981663,20.0,219.07,218.93,0.2343]
[1733787982182,0.25098,219.06,218.93,0.2343]
[1733787982768,0.25098,219.06,218.9,3.0695]
[1733787982971,0.25098,219.04,218.9,3.0695]
[1733787983684,0.25098,219.01,218.88,0.2343]
[1733787985678,0.12549,219.01,218.88,0.2343]
[1733787985875,0.12549,219.03,218.88,0.2343]
[1733787986368,1.6094,219.05,218.88,0.2343]
[1733787986685,0.12549,219.04,218.88,0.2343]
[1733787987187,20.0,219.05,218.88,0.2343]
[1733787987368,0.12549,219.04,218.88,0.2343]
[1733787988788,0.25098,219.05,218.88,0.2343]
[1733787990969,0.25098,218.99,218.85,3.0695]
[1733787992705,0.12549,218.94,218.85,3.0695]
[1733787992906,0.25098,218.94,218.85,3.0695]
[1733787993271,20.0,218.93,218.76,3.3038]
[1733787993475,0.12549,218.88,218.76,3.3038]
[1733787995508,0.25098,218.91,218.76,3.3038]
[1733787996810,2.52346939,218.91,218.76,3.3038]
[1733787996987,0.25098,218.91,218.76,3.3038]
[1733787998296,2.21743802,218.92,218.77,0.12549]
[1733787998483,1.517,218.99,218.77,0.12549]
[1733787998877,0.12549,218.98,218.77,0.12549]
[1733787999472,13.88549,218.98,218.77,0.12549]
[1733787999674,0.25098,218.94,218.77,0.12549]
[1733788000405,0.25098,218.94,218.76,3.3038]
[1733788001307,0.25098,218.84,218.57,29.56413639]
[1733788001483,0.25098,218.84,218.58,0.68582991]
[1733788002589,0.12549,218.82,218.54,0.68594778]